[Event "Titled Tuesday Blitz June 13 Late 2023"]
[White "Yolosz"]
[Black "Tokhirjonova, Gulrukhbegim"]
[BlackFideId "14203626"]
[WhiteElo "2404"]
[BlackElo "2265"]
[Result "0-1"]
[Round "11"]
[TimeControl "180+2"]
[Date "2023.06.13"]
[WhiteClock "0:00:09"]
[BlackClock "0:01:04"]
[Board "83"]

1. d4 {[%clk 0:03:00]}  Nf6 {[%clk 0:02:57]} 2. Bf4 {[%clk 0:03:00]}  d5 {[%clk 0:02:55]} 3. e3 {[%clk 0:03:00]}  c5 {[%clk 0:02:55]} 4. c3 {[%clk 0:02:58]}  Nc6 {[%clk 0:02:56]} 5. Nd2 {[%clk 0:02:56]}  e6 {[%clk 0:02:55]} 6. Ngf3 {[%clk 0:02:52]}  Bd6 {[%clk 0:02:54]} 7. Bg3 {[%clk 0:02:51]}  O-O {[%clk 0:02:53]} 8. Bd3 {[%clk 0:02:51]}  b6 {[%clk 0:02:53]} 9. Qe2 {[%clk 0:02:47]}  Bb7 {[%clk 0:02:51]} 10. a4 {[%clk 0:02:47]}  Re8 {[%clk 0:02:50]} 11. O-O {[%clk 0:02:38]}  e5 {[%clk 0:02:44]} 12. dxe5 {[%clk 0:02:33]}  Nxe5 {[%clk 0:02:43]} 13. Nxe5 {[%clk 0:02:31]}  Bxe5 {[%clk 0:02:42]} 14. Bxe5 {[%clk 0:02:06]}  Rxe5 {[%clk 0:02:41]} 15. Nf3 {[%clk 0:02:05]}  Re7 {[%clk 0:02:40]} 16. Rfd1 {[%clk 0:02:00]}  Qc7 {[%clk 0:02:38]} 17. Qc2 {[%clk 0:01:57]}  h6 {[%clk 0:02:38]} 18. h3 {[%clk 0:01:56]}  Rd8 {[%clk 0:02:32]} 19. a5 {[%clk 0:01:54]}  Qc8 {[%clk 0:02:16]} 20. axb6 {[%clk 0:01:52]}  axb6 {[%clk 0:02:17]} 21. Ra7 {[%clk 0:01:51]}  Ree8 {[%clk 0:02:12]} 22. Rda1 {[%clk 0:01:46]}  d4 {[%clk 0:02:09]} 23. cxd4 {[%clk 0:01:44]}  Bxf3 {[%clk 0:02:09]} 24. Bf5 {[%clk 0:01:26]}  Qc6 {[%clk 0:02:02]} 25. gxf3 {[%clk 0:01:17]}  Qxf3 {[%clk 0:02:02]} 26. dxc5 {[%clk 0:01:16]}  bxc5 {[%clk 0:01:57]} 27. Qc4 {[%clk 0:01:02]}  Rf8 {[%clk 0:01:47]} 28. Bg4 {[%clk 0:00:58]}  Nxg4 {[%clk 0:01:41]} 29. Qxg4 {[%clk 0:00:57]}  Qf6 {[%clk 0:01:40]} 30. Rb7 {[%clk 0:00:50]}  Rd2 {[%clk 0:01:38]} 31. Qf4 {[%clk 0:00:40]}  Qg6+ {[%clk 0:01:30]} 32. Kh2 {[%clk 0:00:34]}  Qc2 {[%clk 0:01:23]} 33. Kg2 {[%clk 0:00:30]}  Rd5 {[%clk 0:01:13]} 34. h4 {[%clk 0:00:19]}  Qg6+ {[%clk 0:01:11]} 35. Qg3 {[%clk 0:00:19]}  Qc6 {[%clk 0:01:07]} 36. Qf3 {[%clk 0:00:14]}  Qxb7 {[%clk 0:01:06]} 37. Rd1 {[%clk 0:00:14]}  Rd7 {[%clk 0:01:06]} 38. Rxd7 {[%clk 0:00:09]}  Qxd7 {[%clk 0:01:04]} 0-1


[Site "https://www.chess.com"]

[Event "Titled Tuesday Blitz June 13 Late 2023"]
[White "Ozalp, Burak"]
[Black "Golubev, Mikhail"]
[WhiteFideId "6314210"]
[BlackFideId "14100983"]
[WhiteElo "2106"]
[BlackElo "2374"]
[Result "0-1"]
[Round "11"]
[TimeControl "180+2"]
[Date "2023.06.13"]
[WhiteClock "0:00:14"]
[BlackClock "0:00:55"]
[Board "84"]

1. Nf3 {[%clk 0:03:00]}  d6 {[%clk 0:02:59]} 2. d4 {[%clk 0:02:59]}  Nf6 {[%clk 0:02:58]} 3. g3 {[%clk 0:02:58]}  g6 {[%clk 0:02:57]} 4. Bg2 {[%clk 0:02:58]}  Bg7 {[%clk 0:02:58]} 5. O-O {[%clk 0:02:59]}  O-O {[%clk 0:02:59]} 6. a4 {[%clk 0:02:59]}  Nbd7 {[%clk 0:02:56]} 7. Nc3 {[%clk 0:02:54]}  a5 {[%clk 0:02:54]} 8. e4 {[%clk 0:02:53]}  e5 {[%clk 0:02:54]} 9. h3 {[%clk 0:02:50]}  exd4 {[%clk 0:02:48]} 10. Nxd4 {[%clk 0:02:50]}  Re8 {[%clk 0:02:48]} 11. Bg5 {[%clk 0:02:43]}  h6 {[%clk 0:02:47]} 12. Be3 {[%clk 0:02:40]}  Nc5 {[%clk 0:02:45]} 13. Re1 {[%clk 0:01:54]}  Nfxe4 {[%clk 0:02:35]} 14. Nxe4 {[%clk 0:01:51]}  Nxe4 {[%clk 0:02:36]} 15. Bxh6 {[%clk 0:01:32]}  Nxf2 {[%clk 0:02:10]} 16. Kxf2 {[%clk 0:01:20]}  Rxe1 {[%clk 0:02:04]} 17. Qxe1 {[%clk 0:01:13]}  Bxd4+ {[%clk 0:02:01]} 18. Be3 {[%clk 0:01:13]}  Qf6+ {[%clk 0:01:54]} 19. Kg1 {[%clk 0:01:08]}  Bxb2 {[%clk 0:01:42]} 20. Rd1 {[%clk 0:01:07]}  Be5 {[%clk 0:01:38]} 21. Qd2 {[%clk 0:01:02]}  c6 {[%clk 0:01:34]} 22. Rf1 {[%clk 0:00:58]}  Qg7 {[%clk 0:01:19]} 23. Bh6 {[%clk 0:00:57]}  Qh8 {[%clk 0:01:18]} 24. Bf4 {[%clk 0:00:25]}  Be6 {[%clk 0:01:17]} 25. Re1 {[%clk 0:00:19]}  Bc3 {[%clk 0:01:05]} 26. Qxd6 {[%clk 0:00:16]}  Bxe1 {[%clk 0:01:02]} 27. Be5 {[%clk 0:00:17]}  Qh6 {[%clk 0:00:59]} 28. Qe7 {[%clk 0:00:17]}  Qe3+ {[%clk 0:00:55]} 29. Kh1 {[%clk 0:00:14]}  Qxe5 {[%clk 0:00:55]} 0-1


[Site "https://www.chess.com"]

[Event "Titled Tuesday Blitz June 13 Late 2023"]
[White "Fernandez, Maria Florencia"]
[Black "Srdanovic, Jovana"]
[WhiteFideId "116459"]
[BlackFideId "954810"]
[WhiteElo "2074"]
[BlackElo "2155"]
[Result "0-1"]
[Round "11"]
[TimeControl "180+2"]
[Date "2023.06.13"]
[WhiteClock "0:00:00"]
[BlackClock "0:01:35"]
[Board "85"]

1. d4 {[%clk 0:03:00]}  d5 {[%clk 0:02:58]} 2. c4 {[%clk 0:03:01]}  c6 {[%clk 0:02:58]} 3. Nc3 {[%clk 0:03:00]}  Nf6 {[%clk 0:02:57]} 4. Nf3 {[%clk 0:02:58]}  dxc4 {[%clk 0:02:57]} 5. a4 {[%clk 0:02:57]}  Bf5 {[%clk 0:02:55]} 6. e3 {[%clk 0:02:55]}  e6 {[%clk 0:02:55]} 7. Bxc4 {[%clk 0:02:56]}  Bb4 {[%clk 0:02:55]} 8. O-O {[%clk 0:02:56]}  O-O {[%clk 0:02:56]} 9. Ne5 {[%clk 0:02:51]}  Nbd7 {[%clk 0:02:54]} 10. Qe2 {[%clk 0:02:51]}  Nxe5 {[%clk 0:02:53]} 11. dxe5 {[%clk 0:02:52]}  Nd5 {[%clk 0:02:53]} 12. e4 {[%clk 0:02:02]}  Nxc3 {[%clk 0:02:46]} 13. bxc3 {[%clk 0:02:02]}  Bxc3 {[%clk 0:02:46]} 14. exf5 {[%clk 0:02:03]}  Bxa1 {[%clk 0:02:45]} 15. f6 {[%clk 0:01:17]}  Qd4 {[%clk 0:02:31]} 16. fxg7 {[%clk 0:00:43]}  Rfd8 {[%clk 0:02:29]} 17. Bg5 {[%clk 0:00:36]}  Qxe5 {[%clk 0:02:23]} 18. Qh5 {[%clk 0:00:15]}  Rd4 {[%clk 0:02:13]} 19. Bb3 {[%clk 0:00:15]}  Rb4 {[%clk 0:02:08]} 20. Bc2 {[%clk 0:00:11]}  Qxg7 {[%clk 0:02:03]} 21. Bh6 {[%clk 0:00:08]}  Qe5 {[%clk 0:01:58]} 22. Qh3 {[%clk 0:00:04]}  f5 {[%clk 0:01:47]} 23. Be3 {[%clk 0:00:02]}  Rg4 {[%clk 0:01:45]} 24. Bd2 {[%clk 0:00:01]}  Bd4 {[%clk 0:01:38]} 25. Qh5 {[%clk 0:00:00]}  Qg7 {[%clk 0:01:35]} 0-1


[Site "https://www.chess.com"]

[Event "Titled Tuesday Blitz June 13 Late 2023"]
[White "The_Straightforward_Rook"]
[Black "Ai, Evan"]
[BlackFideId "2094770"]
[WhiteElo "2359"]
[BlackElo "1963"]
[Result "1/2-1/2"]
[Round "11"]
[TimeControl "180+2"]
[Date "2023.06.13"]
[WhiteClock "0:00:27"]
[BlackClock "0:00:41"]
[Board "86"]

1. Nf3 {[%clk 0:03:00]}  Nf6 {[%clk 0:02:59]} 2. c4 {[%clk 0:03:00]}  e6 {[%clk 0:02:59]} 3. Nc3 {[%clk 0:03:00]}  d5 {[%clk 0:02:59]} 4. d4 {[%clk 0:02:59]}  Bb4 {[%clk 0:02:59]} 5. Qa4+ {[%clk 0:02:57]}  Nc6 {[%clk 0:02:59]} 6. e3 {[%clk 0:02:57]}  O-O {[%clk 0:02:59]} 7. a3 {[%clk 0:02:54]}  Bxc3+ {[%clk 0:02:58]} 8. bxc3 {[%clk 0:02:55]}  Bd7 {[%clk 0:02:58]} 9. Qc2 {[%clk 0:02:54]}  Re8 {[%clk 0:02:56]} 10. Rb1 {[%clk 0:02:53]}  b6 {[%clk 0:02:55]} 11. cxd5 {[%clk 0:02:50]}  exd5 {[%clk 0:02:55]} 12. Bd3 {[%clk 0:02:50]}  Ne4 {[%clk 0:02:55]} 13. O-O {[%clk 0:02:49]}  Na5 {[%clk 0:02:54]} 14. Nd2 {[%clk 0:02:42]}  f5 {[%clk 0:02:42]} 15. c4 {[%clk 0:02:41]}  Nxd2 {[%clk 0:02:35]} 16. Bxd2 {[%clk 0:02:40]}  Nxc4 {[%clk 0:02:34]} 17. Bxc4 {[%clk 0:02:40]}  dxc4 {[%clk 0:02:35]} 18. Qxc4+ {[%clk 0:02:40]}  Be6 {[%clk 0:02:35]} 19. Qc2 {[%clk 0:02:38]}  Bd5 {[%clk 0:02:34]} 20. Qxf5 {[%clk 0:02:32]}  Be4 {[%clk 0:02:35]} 21. Qg4 {[%clk 0:02:27]}  Bxb1 {[%clk 0:02:34]} 22. Rxb1 {[%clk 0:02:28]}  c5 {[%clk 0:02:34]} 23. Bc3 {[%clk 0:02:27]}  Qc8 {[%clk 0:02:24]} 24. Qg5 {[%clk 0:02:21]}  Qd8 {[%clk 0:02:07]} 25. Qg4 {[%clk 0:02:18]}  Qf6 {[%clk 0:02:01]} 26. Ba1 {[%clk 0:02:13]}  Qe6 {[%clk 0:01:57]} 27. Qxe6+ {[%clk 0:02:05]}  Rxe6 {[%clk 0:01:58]} 28. dxc5 {[%clk 0:02:06]}  bxc5 {[%clk 0:01:59]} 29. Rb7 {[%clk 0:02:06]}  Rg6 {[%clk 0:01:54]} 30. g3 {[%clk 0:02:02]}  Rc8 {[%clk 0:01:52]} 31. Rxa7 {[%clk 0:02:00]}  c4 {[%clk 0:01:52]} 32. Bc3 {[%clk 0:01:59]}  Kf8 {[%clk 0:01:48]} 33. f4 {[%clk 0:01:52]}  Ke8 {[%clk 0:01:47]} 34. Kf2 {[%clk 0:01:51]}  Rd6 {[%clk 0:01:46]} 35. Ke2 {[%clk 0:01:42]}  Rd3 {[%clk 0:01:46]} 36. Bxg7 {[%clk 0:01:41]}  Rd7 {[%clk 0:01:41]} 37. Rxd7 {[%clk 0:01:36]}  Kxd7 {[%clk 0:01:42]} 38. Kd2 {[%clk 0:01:35]}  Ke6 {[%clk 0:01:39]} 39. e4 {[%clk 0:01:34]}  Ra8 {[%clk 0:01:28]} 40. Bb2 {[%clk 0:01:33]}  Rb8 {[%clk 0:01:26]} 41. Bc3 {[%clk 0:01:30]}  Rb3 {[%clk 0:01:26]} 42. Bb4 {[%clk 0:01:25]}  h5 {[%clk 0:01:20]} 43. Bc3 {[%clk 0:01:01]}  Rxa3 {[%clk 0:01:19]} 44. f5+ {[%clk 0:01:02]}  Kf7 {[%clk 0:01:13]} 45. e5 {[%clk 0:01:01]}  Ra2+ {[%clk 0:01:13]} 46. Ke3 {[%clk 0:01:01]}  Rxh2 {[%clk 0:01:14]} 47. e6+ {[%clk 0:01:00]}  Ke7 {[%clk 0:01:14]} 48. Kd4 {[%clk 0:01:01]}  Kf6 {[%clk 0:01:09]} 49. Ke4+ {[%clk 0:00:58]}  Ke7 {[%clk 0:01:08]} 50. Kd5 {[%clk 0:00:58]}  Rf2 {[%clk 0:00:51]} 51. f6+ {[%clk 0:00:43]}  Rxf6 {[%clk 0:00:51]} 52. Bxf6+ {[%clk 0:00:44]}  Kxf6 {[%clk 0:00:51]} 53. Kd6 {[%clk 0:00:45]}  c3 {[%clk 0:00:51]} 54. e7 {[%clk 0:00:45]}  c2 {[%clk 0:00:52]} 55. e8=Q {[%clk 0:00:46]}  c1=Q {[%clk 0:00:51]} 56. Qxh5 {[%clk 0:00:32]}  Qa3+ {[%clk 0:00:46]} 57. Kd7 {[%clk 0:00:29]}  Qxg3 {[%clk 0:00:45]} 58. Qh8+ {[%clk 0:00:28]}  Kf5 {[%clk 0:00:41]} 59. Qf8+ {[%clk 0:00:27]} 1/2-1/2


[Site "https://www.chess.com"]

[Event "Titled Tuesday Blitz June 13 Late 2023"]
[White "el_sporco"]
[Black "Erzhanov, Arman"]
[BlackFideId "4138821"]
[WhiteElo "2365"]
[BlackElo "2138"]
[Result "0-1"]
[Round "11"]
[TimeControl "180+2"]
[Date "2023.06.13"]
[WhiteClock "0:00:00"]
[BlackClock "0:00:19"]
[Board "87"]

1. e4 {[%clk 0:03:00]}  d6 {[%clk 0:03:00]} 2. d4 {[%clk 0:02:55]}  Nf6 {[%clk 0:03:00]} 3. Nc3 {[%clk 0:02:56]}  e5 {[%clk 0:03:00]} 4. Nf3 {[%clk 0:02:56]}  Nbd7 {[%clk 0:03:00]} 5. Bc4 {[%clk 0:02:56]}  Be7 {[%clk 0:03:00]} 6. O-O {[%clk 0:02:56]}  O-O {[%clk 0:03:00]} 7. Re1 {[%clk 0:02:57]}  c6 {[%clk 0:03:00]} 8. a4 {[%clk 0:02:56]}  a5 {[%clk 0:03:01]} 9. h3 {[%clk 0:02:56]}  Nb6 {[%clk 0:03:01]} 10. Bb3 {[%clk 0:02:55]}  Nfd7 {[%clk 0:03:01]} 11. Be3 {[%clk 0:02:50]}  exd4 {[%clk 0:03:01]} 12. Nxd4 {[%clk 0:02:46]}  Nc5 {[%clk 0:03:02]} 13. Nf5 {[%clk 0:02:39]}  Bxf5 {[%clk 0:03:01]} 14. exf5 {[%clk 0:02:40]}  d5 {[%clk 0:03:00]} 15. f6 {[%clk 0:02:34]}  Bd6 {[%clk 0:02:53]} 16. Bd4 {[%clk 0:02:23]}  g6 {[%clk 0:02:27]} 17. Qd2 {[%clk 0:02:18]}  Re8 {[%clk 0:02:26]} 18. Rxe8+ {[%clk 0:02:09]}  Qxe8 {[%clk 0:02:26]} 19. Re1 {[%clk 0:02:10]}  Qf8 {[%clk 0:02:18]} 20. Qg5 {[%clk 0:01:35]}  Nbd7 {[%clk 0:02:15]} 21. Re7 {[%clk 0:01:23]}  Ne6 {[%clk 0:02:01]} 22. Rxe6 {[%clk 0:01:08]}  fxe6 {[%clk 0:02:01]} 23. Ne4 {[%clk 0:01:08]}  Bc7 {[%clk 0:01:38]} 24. Qg4 {[%clk 0:01:02]}  Re8 {[%clk 0:01:33]} 25. Ng5 {[%clk 0:01:00]}  Nxf6 {[%clk 0:01:29]} 26. Qh4 {[%clk 0:00:51]}  Re7 {[%clk 0:01:16]} 27. Bc5 {[%clk 0:00:38]}  Qd8 {[%clk 0:00:59]} 28. Bxe7 {[%clk 0:00:33]}  Qxe7 {[%clk 0:01:00]} 29. c4 {[%clk 0:00:23]}  Ne4 {[%clk 0:00:58]} 30. f4 {[%clk 0:00:14]}  Nxg5 {[%clk 0:00:47]} 31. Qxg5 {[%clk 0:00:15]}  Qxg5 {[%clk 0:00:46]} 32. fxg5 {[%clk 0:00:16]}  Bf4 {[%clk 0:00:46]} 33. cxd5 {[%clk 0:00:14]}  exd5 {[%clk 0:00:47]} 34. Bd1 {[%clk 0:00:11]}  Kf7 {[%clk 0:00:40]} 35. Bg4 {[%clk 0:00:11]}  Ke7 {[%clk 0:00:41]} 36. Bc8 {[%clk 0:00:11]}  b6 {[%clk 0:00:41]} 37. h4 {[%clk 0:00:09]}  Bg3 {[%clk 0:00:40]} 38. h5 {[%clk 0:00:09]}  gxh5 {[%clk 0:00:39]} 39. Bf5 {[%clk 0:00:08]}  Bf4 {[%clk 0:00:39]} 40. Bxh7 {[%clk 0:00:07]}  Bxg5 {[%clk 0:00:39]} 41. b3 {[%clk 0:00:08]}  Kd6 {[%clk 0:00:38]} 42. Kf1 {[%clk 0:00:08]}  Kc5 {[%clk 0:00:35]} 43. Bg6 {[%clk 0:00:08]}  h4 {[%clk 0:00:35]} 44. Be8 {[%clk 0:00:08]}  Kd6 {[%clk 0:00:29]} 45. Ke2 {[%clk 0:00:08]}  Kc5 {[%clk 0:00:24]} 46. Kd3 {[%clk 0:00:07]}  b5 {[%clk 0:00:25]} 47. Bg6 {[%clk 0:00:05]}  Kb4 {[%clk 0:00:24]} 48. axb5 {[%clk 0:00:05]}  cxb5 {[%clk 0:00:24]} 49. Kc2 {[%clk 0:00:06]}  d4 {[%clk 0:00:24]} 50. Bd3 {[%clk 0:00:05]}  a4 {[%clk 0:00:22]} 51. bxa4 {[%clk 0:00:06]}  bxa4 {[%clk 0:00:23]} 52. Bf5 {[%clk 0:00:06]}  a3 {[%clk 0:00:23]} 53. Be6 {[%clk 0:00:06]}  Bf6 {[%clk 0:00:21]} 54. Ba2 {[%clk 0:00:07]}  Be7 {[%clk 0:00:21]} 55. Kd3 {[%clk 0:00:07]}  Bf6 {[%clk 0:00:21]} 56. Bd5 {[%clk 0:00:07]}  Kc5 {[%clk 0:00:21]} 57. Ba2 {[%clk 0:00:06]}  Kd6 {[%clk 0:00:22]} 58. Ke4 {[%clk 0:00:07]}  Bg7 {[%clk 0:00:21]} 59. Bc4 {[%clk 0:00:06]}  Kc5 {[%clk 0:00:22]} 60. Ba2 {[%clk 0:00:06]}  Kb4 {[%clk 0:00:22]} 61. Kd3 {[%clk 0:00:06]}  Kb5 {[%clk 0:00:21]} 62. Ke4 {[%clk 0:00:05]}  Kc6 {[%clk 0:00:21]} 63. Bb3 {[%clk 0:00:04]}  Kd6 {[%clk 0:00:21]} 64. Ba2 {[%clk 0:00:04]}  Kc6 {[%clk 0:00:21]} 65. Bb3 {[%clk 0:00:05]}  Kd7 {[%clk 0:00:21]} 66. Ba2 {[%clk 0:00:05]}  Ke7 {[%clk 0:00:21]} 67. Bc4 {[%clk 0:00:05]}  Bf6 {[%clk 0:00:21]} 68. Ba2 {[%clk 0:00:06]}  Kf8 {[%clk 0:00:21]} 69. Kd3 {[%clk 0:00:06]}  Kg7 {[%clk 0:00:22]} 70. Ke4 {[%clk 0:00:07]}  Kg6 {[%clk 0:00:22]} 71. Bd5 {[%clk 0:00:07]}  Kg5 {[%clk 0:00:22]} 72. Be6 {[%clk 0:00:06]}  Bg7 {[%clk 0:00:20]} 73. Kd3 {[%clk 0:00:06]}  Kf4 {[%clk 0:00:20]} 74. Ba2 {[%clk 0:00:05]}  Kg3 {[%clk 0:00:20]} 75. Bd5 {[%clk 0:00:06]}  a2 {[%clk 0:00:20]} 76. Bxa2 {[%clk 0:00:05]}  Kxg2 {[%clk 0:00:21]} 77. Bd5+ {[%clk 0:00:04]}  Kg1 {[%clk 0:00:20]} 78. Ke2 {[%clk 0:00:02]}  h3 {[%clk 0:00:20]} 79. Kf3 {[%clk 0:00:01]}  h2 {[%clk 0:00:20]} 80. Kg3 {[%clk 0:00:00]}  h1=Q {[%clk 0:00:19]} 0-1


[Site "https://www.chess.com"]

[Event "Titled Tuesday Blitz June 13 Late 2023"]
[White "Zherebtsova, Alexandra"]
[Black "Papayan, Oleg"]
[WhiteFideId "24129518"]
[BlackFideId "4193911"]
[WhiteElo "2055"]
[BlackElo "2167"]
[Result "0-1"]
[Round "11"]
[TimeControl "180+2"]
[Date "2023.06.13"]
[WhiteClock "0:00:00"]
[BlackClock "0:00:04"]
[Board "88"]

1. d4 {[%clk 0:03:00]}  Nf6 {[%clk 0:02:57]} 2. Nf3 {[%clk 0:03:00]}  d5 {[%clk 0:02:57]} 3. c4 {[%clk 0:02:59]}  e6 {[%clk 0:02:57]} 4. e3 {[%clk 0:02:56]}  c5 {[%clk 0:02:57]} 5. cxd5 {[%clk 0:02:55]}  Nxd5 {[%clk 0:02:56]} 6. Be2 {[%clk 0:02:53]}  Nc6 {[%clk 0:02:56]} 7. O-O {[%clk 0:02:52]}  cxd4 {[%clk 0:02:56]} 8. Nxd4 {[%clk 0:02:52]}  Nxd4 {[%clk 0:02:53]} 9. Qxd4 {[%clk 0:02:51]}  Qb6 {[%clk 0:02:53]} 10. Qxb6 {[%clk 0:02:44]}  Nxb6 {[%clk 0:02:54]} 11. Nc3 {[%clk 0:02:42]}  Be7 {[%clk 0:02:54]} 12. b3 {[%clk 0:02:33]}  O-O {[%clk 0:02:50]} 13. Bb2 {[%clk 0:02:33]}  Bf6 {[%clk 0:02:44]} 14. Bf3 {[%clk 0:02:28]}  Rb8 {[%clk 0:02:34]} 15. a4 {[%clk 0:02:14]}  Bd7 {[%clk 0:02:26]} 16. a5 {[%clk 0:02:07]}  Nd5 {[%clk 0:02:26]} 17. Rac1 {[%clk 0:02:03]}  Nb4 {[%clk 0:02:22]} 18. Ba3 {[%clk 0:01:38]}  Be7 {[%clk 0:01:53]} 19. Rfd1 {[%clk 0:01:26]}  Bc6 {[%clk 0:01:47]} 20. Ne4 {[%clk 0:01:10]}  Rfd8 {[%clk 0:01:39]} 21. h3 {[%clk 0:01:00]}  Kf8 {[%clk 0:01:22]} 22. Rxd8+ {[%clk 0:00:59]}  Rxd8 {[%clk 0:01:22]} 23. Rc4 {[%clk 0:00:42]}  Nd3 {[%clk 0:01:15]} 24. Bxe7+ {[%clk 0:00:38]}  Kxe7 {[%clk 0:01:16]} 25. a6 {[%clk 0:00:21]}  Ne5 {[%clk 0:01:12]} 26. Rc5 {[%clk 0:00:16]}  Nxf3+ {[%clk 0:01:06]} 27. gxf3 {[%clk 0:00:16]}  Bxe4 {[%clk 0:01:03]} 28. fxe4 {[%clk 0:00:16]}  bxa6 {[%clk 0:01:03]} 29. Rc7+ {[%clk 0:00:16]}  Rd7 {[%clk 0:01:04]} 30. Rc6 {[%clk 0:00:16]}  Rd6 {[%clk 0:01:01]} 31. Rc7+ {[%clk 0:00:17]}  Rd7 {[%clk 0:00:28]} 32. Rc6 {[%clk 0:00:17]}  Rb7 {[%clk 0:00:26]} 33. Rxa6 {[%clk 0:00:17]}  Kd7 {[%clk 0:00:15]} 34. Kf1 {[%clk 0:00:17]}  Kc7 {[%clk 0:00:15]} 35. Ke2 {[%clk 0:00:16]}  Kb8 {[%clk 0:00:16]} 36. Ra3 {[%clk 0:00:16]}  Rb4 {[%clk 0:00:17]} 37. Kd3 {[%clk 0:00:16]}  Kb7 {[%clk 0:00:17]} 38. Kc3 {[%clk 0:00:16]}  Rxe4 {[%clk 0:00:16]} 39. Ra5 {[%clk 0:00:14]}  Rh4 {[%clk 0:00:16]} 40. Rg5 {[%clk 0:00:14]}  g6 {[%clk 0:00:17]} 41. Rg3 {[%clk 0:00:14]}  a5 {[%clk 0:00:16]} 42. Rf3 {[%clk 0:00:13]}  f5 {[%clk 0:00:15]} 43. Rg3 {[%clk 0:00:14]}  Kb6 {[%clk 0:00:15]} 44. Kc2 {[%clk 0:00:13]}  Kb5 {[%clk 0:00:15]} 45. Kc3 {[%clk 0:00:14]}  e5 {[%clk 0:00:13]} 46. Rf3 {[%clk 0:00:13]}  Kc5 {[%clk 0:00:10]} 47. Rg3 {[%clk 0:00:12]}  Kd5 {[%clk 0:00:10]} 48. Kd3 {[%clk 0:00:12]}  Rb4 {[%clk 0:00:10]} 49. Kc3 {[%clk 0:00:12]}  Ke4 {[%clk 0:00:08]} 50. h4 {[%clk 0:00:11]}  Kd5 {[%clk 0:00:07]} 51. Rh3 {[%clk 0:00:10]}  h5 {[%clk 0:00:07]} 52. Rg3 {[%clk 0:00:10]}  Rg4 {[%clk 0:00:07]} 53. Rh3 {[%clk 0:00:10]}  Rg2 {[%clk 0:00:07]} 54. Rf3 {[%clk 0:00:10]}  Rh2 {[%clk 0:00:06]} 55. Rg3 {[%clk 0:00:09]}  Rxf2 {[%clk 0:00:06]} 56. Rxg6 {[%clk 0:00:09]}  Rf3 {[%clk 0:00:06]} 57. Kd2 {[%clk 0:00:09]}  Rh3 {[%clk 0:00:05]} 58. Rg5 {[%clk 0:00:09]}  Ke4 {[%clk 0:00:03]} 59. Rxh5 {[%clk 0:00:09]}  Rh2+ {[%clk 0:00:03]} 60. Kc3 {[%clk 0:00:08]}  Re2 {[%clk 0:00:04]} 61. Kc4 {[%clk 0:00:07]}  Rxe3 {[%clk 0:00:05]} 62. Rh8 {[%clk 0:00:07]}  Rh3 {[%clk 0:00:04]} 63. h5 {[%clk 0:00:07]}  f4 {[%clk 0:00:04]} 64. h6 {[%clk 0:00:07]}  f3 {[%clk 0:00:05]} 65. h7 {[%clk 0:00:07]}  Ke3 {[%clk 0:00:03]} 66. Re8 {[%clk 0:00:06]}  Rxh7 {[%clk 0:00:03]} 67. Rxe5+ {[%clk 0:00:07]}  Kd2 {[%clk 0:00:03]} 68. Rf5 {[%clk 0:00:07]}  Ke3 {[%clk 0:00:03]} 69. Kb5 {[%clk 0:00:06]}  f2 {[%clk 0:00:03]} 70. Kxa5 {[%clk 0:00:05]}  Rh5 {[%clk 0:00:03]} 71. Rxh5 {[%clk 0:00:05]}  f1=Q {[%clk 0:00:04]} 72. Rb5 {[%clk 0:00:05]}  Qa1+ {[%clk 0:00:03]} 73. Kb4 {[%clk 0:00:05]}  Kd4 {[%clk 0:00:04]} 74. Rb6 {[%clk 0:00:04]}  Qc3+ {[%clk 0:00:04]} 75. Kb5 {[%clk 0:00:04]}  Qxb3+ {[%clk 0:00:04]} 76. Kc6 {[%clk 0:00:04]}  Qc4+ {[%clk 0:00:05]} 77. Kb7 {[%clk 0:00:05]}  Kd5 {[%clk 0:00:04]} 78. Ka7 {[%clk 0:00:03]}  Qc5 {[%clk 0:00:04]} 79. Kb7 {[%clk 0:00:03]}  Qa5 {[%clk 0:00:05]} 80. Rf6 {[%clk 0:00:00]}  Qb4+ {[%clk 0:00:04]} 0-1


[Site "https://www.chess.com"]

[Event "Titled Tuesday Blitz June 13 Late 2023"]
[White "Matsuura, Frederico"]
[Black "Gasparyan, David"]
[WhiteFideId "2107848"]
[BlackFideId "13311980"]
[WhiteElo "2302"]
[BlackElo "2422"]
[Result "1-0"]
[Round "11"]
[TimeControl "180+2"]
[Date "2023.06.13"]
[WhiteClock "0:00:18"]
[BlackClock "0:00:04"]
[Board "89"]

1. d4 {[%clk 0:03:00]}  Nf6 {[%clk 0:02:54]} 2. Nf3 {[%clk 0:03:00]}  g6 {[%clk 0:02:53]} 3. Bg5 {[%clk 0:02:59]}  Ne4 {[%clk 0:02:52]} 4. Bh4 {[%clk 0:02:58]}  Bg7 {[%clk 0:02:51]} 5. c3 {[%clk 0:02:59]}  d5 {[%clk 0:02:50]} 6. Nbd2 {[%clk 0:02:59]}  c5 {[%clk 0:02:45]} 7. Nxe4 {[%clk 0:02:49]}  dxe4 {[%clk 0:02:45]} 8. Nd2 {[%clk 0:02:49]}  cxd4 {[%clk 0:02:43]} 9. Nxe4 {[%clk 0:02:43]}  Qa5 {[%clk 0:02:30]} 10. Qb3 {[%clk 0:02:19]}  Nc6 {[%clk 0:02:09]} 11. Rc1 {[%clk 0:02:07]}  O-O {[%clk 0:02:06]} 12. Nd2 {[%clk 0:01:55]}  Be6 {[%clk 0:01:54]} 13. c4 {[%clk 0:01:49]}  Rab8 {[%clk 0:01:43]} 14. Qa3 {[%clk 0:01:33]}  Qxa3 {[%clk 0:01:22]} 15. bxa3 {[%clk 0:01:34]}  Rfd8 {[%clk 0:01:16]} 16. Nb3 {[%clk 0:01:30]}  Ne5 {[%clk 0:01:11]} 17. Bxe7 {[%clk 0:01:13]}  Rd7 {[%clk 0:01:08]} 18. Bg5 {[%clk 0:01:03]}  Nxc4 {[%clk 0:01:04]} 19. Nc5 {[%clk 0:01:01]}  Rc7 {[%clk 0:00:46]} 20. Nxe6 {[%clk 0:00:48]}  fxe6 {[%clk 0:00:47]} 21. e3 {[%clk 0:00:48]}  Rbc8 {[%clk 0:00:30]} 22. Bxc4 {[%clk 0:00:39]}  Rxc4 {[%clk 0:00:31]} 23. Rxc4 {[%clk 0:00:39]}  Rxc4 {[%clk 0:00:32]} 24. Kd2 {[%clk 0:00:36]}  h6 {[%clk 0:00:30]} 25. Be7 {[%clk 0:00:21]}  dxe3+ {[%clk 0:00:29]} 26. fxe3 {[%clk 0:00:20]}  Bb2 {[%clk 0:00:20]} 27. Rb1 {[%clk 0:00:18]}  Rc7 {[%clk 0:00:13]} 28. Rxb2 {[%clk 0:00:16]}  Rxe7 {[%clk 0:00:13]} 29. Kd3 {[%clk 0:00:17]}  Kf7 {[%clk 0:00:13]} 30. Ke4 {[%clk 0:00:17]}  Kf6 {[%clk 0:00:13]} 31. Rf2+ {[%clk 0:00:17]}  Kg7 {[%clk 0:00:12]} 32. Ke5 {[%clk 0:00:17]}  Rf7 {[%clk 0:00:12]} 33. Rxf7+ {[%clk 0:00:16]}  Kxf7 {[%clk 0:00:12]} 34. Kd6 {[%clk 0:00:17]}  Kf6 {[%clk 0:00:10]} 35. e4 {[%clk 0:00:18]}  e5 {[%clk 0:00:09]} 36. g4 {[%clk 0:00:17]}  h5 {[%clk 0:00:07]} 37. gxh5 {[%clk 0:00:16]}  gxh5 {[%clk 0:00:08]} 38. h4 {[%clk 0:00:16]}  a6 {[%clk 0:00:06]} 39. a4 {[%clk 0:00:16]}  b6 {[%clk 0:00:02]} 40. a3 {[%clk 0:00:16]}  a5 {[%clk 0:00:02]} 41. Kd5 {[%clk 0:00:15]}  Kf7 {[%clk 0:00:01]} 42. Kxe5 {[%clk 0:00:16]}  Ke7 {[%clk 0:00:02]} 43. Kf5 {[%clk 0:00:16]}  Kd6 {[%clk 0:00:02]} 44. e5+ {[%clk 0:00:17]}  Ke7 {[%clk 0:00:02]} 45. e6 {[%clk 0:00:17]}  Ke8 {[%clk 0:00:03]} 46. Kf6 {[%clk 0:00:17]}  b5 {[%clk 0:00:02]} 47. axb5 {[%clk 0:00:17]}  Kf8 {[%clk 0:00:03]} 48. b6 {[%clk 0:00:17]}  Ke8 {[%clk 0:00:03]} 49. b7 {[%clk 0:00:18]}  Kd8 {[%clk 0:00:04]} 50. b8=Q# {[%clk 0:00:18]} 1-0


[Site "https://www.chess.com"]